[Event "*** Titled Tuesday 3|2 Blitz"]
[Site "Chess.com"]
[Date "2015.09.01"]
[Round "8"]
[White "lukas_111111"]
[Black "alexsuper1987"]
[Result "0-1"]
[WhiteElo "2207"]
[BlackElo "2152"]
[TimeControl "180+2"]
[EndTime "12:40:50 PDT"]
[Termination "alexsuper1987 won on time"]

1. e4 {[%clk 0:03:00]} 1... Nc6 {[%clk 0:03:00.8]} 2. d4 {[%clk 0:02:52.9]} 2...
d5 {[%clk 0:03:00.7]} 3. e5 {[%clk 0:02:50.9]} 3... f6 {[%clk 0:03:02]} 4. Nf3
{[%clk 0:02:48.6]} 4... Bg4 {[%clk 0:03:00.9]} 5. Bb5 {[%clk 0:02:43.9]} 5...
fxe5 {[%clk 0:02:42.8]} 6. dxe5 {[%clk 0:02:40.2]} 6... e6 {[%clk 0:02:44.1]} 7.
h3 {[%clk 0:02:27.9]} 7... Bxf3 {[%clk 0:02:20.6]} 8. Qxf3 {[%clk 0:02:27.1]}
8... Bc5 {[%clk 0:02:21.6]} 9. O-O {[%clk 0:02:18.9]} 9... Qd7 {[%clk
0:02:14.3]} 10. Be3 {[%clk 0:02:13.8]} 10... Bxe3 {[%clk 0:01:58.5]} 11. Qxe3
{[%clk 0:02:14]} 11... Nge7 {[%clk 0:01:45.7]} 12. Nd2 {[%clk 0:02:12.4]} 12...
Nf5 {[%clk 0:01:44]} 13. Qc3 {[%clk 0:02:03.2]} 13... Nfd4 {[%clk 0:01:33.2]}
14. Bd3 {[%clk 0:01:50.7]} 14... O-O {[%clk 0:01:22.7]} 15. f4 {[%clk
0:01:37.9]} 15... Rf7 {[%clk 0:01:09]} 16. b4 {[%clk 0:01:36.6]} 16... a6 {[%clk
0:01:09.2]} 17. a4 {[%clk 0:01:35.9]} 17... Nf5 {[%clk 0:00:53]} 18. Bxf5 {[%clk
0:01:33.1]} 18... Rxf5 {[%clk 0:00:53.7]} 19. b5 {[%clk 0:01:34.4]} 19... Ne7
{[%clk 0:00:49.6]} 20. Nb3 {[%clk 0:01:29.4]} 20... b6 {[%clk 0:00:38.5]} 21.
Nd4 {[%clk 0:01:29.3]} 21... Rf7 {[%clk 0:00:39]} 22. Qd3 {[%clk 0:01:18.9]}
22... Ng6 {[%clk 0:00:34.1]} 23. g3 {[%clk 0:01:12.1]} 23... a5 {[%clk 0:00:32]}
24. Rae1 {[%clk 0:01:09.1]} 24... Raf8 {[%clk 0:00:32.5]} 25. f5 {[%clk
0:01:07.8]} 25... Rxf5 {[%clk 0:00:18.3]} 26. Nxf5 {[%clk 0:01:04.2]} 26... exf5
{[%clk 0:00:17.4]} 27. e6 {[%clk 0:01:05.2]} 27... Qd6 {[%clk 0:00:17.9]} 28.
Re3 {[%clk 0:00:24.2]} 28... f4 {[%clk 0:00:17.5]} 29. gxf4 {[%clk 0:00:17]}
29... Nxf4 {[%clk 0:00:18.8]} 30. Qd4 {[%clk 0:00:18.2]} 30... Nxe6 {[%clk
0:00:13.2]} 31. Rxf8+ {[%clk 0:00:17.3]} 31... Nxf8 {[%clk 0:00:14.5]} 32. Rd3
{[%clk 0:00:12.9]} 32... Qg6+ {[%clk 0:00:12.6]} 33. Kh2 {[%clk 0:00:13.9]}
33... Qd6+ {[%clk 0:00:12.9]} 34. Kh1 {[%clk 0:00:14.9]} 34... Qe6 {[%clk
0:00:08.4]} 35. Qxd5 {[%clk 0:00:16]} 35... Kf7 {[%clk 0:00:08.7]} 36. Qxe6+
{[%clk 0:00:15.7]} 36... Kxe6 {[%clk 0:00:10.6]} 37. Re3+ {[%clk 0:00:15.3]}
37... Kd6 {[%clk 0:00:11.2]} 38. Rd3+ {[%clk 0:00:13.5]} 38... Ke6 {[%clk
0:00:11.2]} 39. Rd8 {[%clk 0:00:12.7]} 39... Nd7 {[%clk 0:00:11.2]} 40. Kg2
{[%clk 0:00:13.6]} 40... Nc5 {[%clk 0:00:11.8]} 41. Rd4 {[%clk 0:00:13]} 41...
Ke5 {[%clk 0:00:12.5]} 42. Rc4 {[%clk 0:00:13.4]} 42... Kd5 {[%clk 0:00:13.4]}
43. Rh4 {[%clk 0:00:14.2]} 43... h6 {[%clk 0:00:14.3]} 44. Kf3 {[%clk
0:00:15.3]} 44... Nd7 {[%clk 0:00:12.4]} 45. Ke3 {[%clk 0:00:13.5]} 45... Ne5
{[%clk 0:00:12.6]} 46. Rd4+ {[%clk 0:00:14.1]} 46... Kc5 {[%clk 0:00:13.6]} 47.
Re4 {[%clk 0:00:15]} 47... Nc4+ {[%clk 0:00:13.4]} 48. Kd3 {[%clk 0:00:16.1]}
48... Nb2+ {[%clk 0:00:09.1]} 49. Kc3 {[%clk 0:00:16.2]} 49... Nd1+ {[%clk
0:00:10.3]} 50. Kd2 {[%clk 0:00:17.4]} 50... Nf2 {[%clk 0:00:10.5]} 51. Re3
{[%clk 0:00:16.9]} 51... Kb4 {[%clk 0:00:11.7]} 52. Rf3 {[%clk 0:00:18]} 52...
Nh1 {[%clk 0:00:12.1]} 53. Rf4+ {[%clk 0:00:15.3]} 53... Ka3 {[%clk 0:00:13.6]}
54. Rf7 {[%clk 0:00:07.6]} 54... Kxa4 {[%clk 0:00:07.5]} 55. Rxc7 {[%clk
0:00:06]} 55... Nf2 {[%clk 0:00:06.2]} 56. Rxg7 {[%clk 0:00:05.9]} 56... Nxh3
{[%clk 0:00:05.1]} 57. Rg4+ {[%clk 0:00:04.3]} 57... Kxb5 {[%clk 0:00:06.2]} 58.
Rh4 {[%clk 0:00:05.3]} 58... Nf2 {[%clk 0:00:06.5]} 59. Rxh6 {[%clk 0:00:05]}
59... Ne4+ {[%clk 0:00:07.5]} 60. Kd3 {[%clk 0:00:05.5]} 60... Nc5+ {[%clk
0:00:09.4]} 61. Kc3 {[%clk 0:00:06.8]} 61... Ne4+ {[%clk 0:00:10.4]} 62. Kb2
{[%clk 0:00:06.9]} 62... Nc5 {[%clk 0:00:11.8]} 63. Rh5 {[%clk 0:00:07.2]} 63...
Kc4 {[%clk 0:00:12.2]} 64. Rh4+ {[%clk 0:00:08]} 64... Kb5 {[%clk 0:00:13.6]}
65. Rh6 {[%clk 0:00:09]} 65... Na4+ {[%clk 0:00:14.9]} 66. Kb3 {[%clk
0:00:09.1]} 66... Nc5+ {[%clk 0:00:16.5]} 67. Kc3 {[%clk 0:00:10.4]} 67... Na4+
{[%clk 0:00:17.9]} 68. Kd4 {[%clk 0:00:11.6]} 68... Nc5 {[%clk 0:00:19.1]} 69.
Kd5 {[%clk 0:00:09.8]} 69... a4 {[%clk 0:00:18.3]} 70. Rh3 {[%clk 0:00:09.2]}
70... Kb4 {[%clk 0:00:18]} 71. Rh6 {[%clk 0:00:07]} 71... Kb5 {[%clk 0:00:15.3]}
72. c4+ {[%clk 0:00:03.2]} 72... Ka5 {[%clk 0:00:15.9]} 0-1

[Event "*** Titled Tuesday 3|2 Blitz"]
[Site "Chess.com"]
[Date "2015.09.01"]
[Round "8"]
[White "manubibi"]
[Black "PowerThinking2650"]
[Result "1-0"]
[WhiteElo "2425"]
[BlackElo "2092"]
[TimeControl "180+2"]
[EndTime "12:40:59 PDT"]
[Termination "manubibi won on time"]

1. e4 {[%clk 0:03:01.9]} 1... e5 {[%clk 0:02:59.9]} 2. Nf3 {[%clk 0:03:02]} 2...
Nc6 {[%clk 0:03:01.3]} 3. Bb5 {[%clk 0:03:02.1]} 3... a6 {[%clk 0:03:02.4]} 4.
Ba4 {[%clk 0:03:03.2]} 4... Nf6 {[%clk 0:03:03]} 5. O-O {[%clk 0:03:03.6]} 5...
Be7 {[%clk 0:03:04.4]} 6. Re1 {[%clk 0:03:04.5]} 6... b5 {[%clk 0:03:05.3]} 7.
Bb3 {[%clk 0:03:05.7]} 7... d6 {[%clk 0:03:06.5]} 8. c3 {[%clk 0:03:04.6]} 8...
O-O {[%clk 0:03:07.7]} 9. h3 {[%clk 0:03:05.9]} 9... Bb7 {[%clk 0:03:08.1]} 10.
d4 {[%clk 0:03:05.2]} 10... Re8 {[%clk 0:03:09.5]} 11. Ng5 {[%clk 0:03:04.9]}
11... Rf8 {[%clk 0:03:10]} 12. Nf3 {[%clk 0:03:04.7]} 12... h6 {[%clk
0:03:10.2]} 13. Nbd2 {[%clk 0:03:03.6]} 13... Re8 {[%clk 0:03:10.9]} 14. Nf1
{[%clk 0:03:04.7]} 14... Bf8 {[%clk 0:03:11.5]} 15. Ng3 {[%clk 0:03:05.1]} 15...
Qd7 {[%clk 0:03:12.2]} 16. a4 {[%clk 0:03:04.3]} 16... Rad8 {[%clk 0:03:11.9]}
17. d5 {[%clk 0:03:00.4]} 17... Ne7 {[%clk 0:03:04.5]} 18. c4 {[%clk 0:02:59.4]}
18... bxc4 {[%clk 0:02:56.1]} 19. Bxc4 {[%clk 0:02:59.9]} 19... c6 {[%clk
0:02:57.2]} 20. dxc6 {[%clk 0:02:54]} 20... Nxc6 {[%clk 0:02:54.7]} 21. Qe2
{[%clk 0:02:52.8]} 21... d5 {[%clk 0:02:39.6]} 22. Bxa6 {[%clk 0:02:34.6]} 22...
dxe4 {[%clk 0:02:33.5]} 23. Bxb7 {[%clk 0:02:21.8]} 23... exf3 {[%clk
0:02:19.7]} 24. Bxc6 {[%clk 0:02:21.5]} 24... Qxc6 {[%clk 0:02:08.1]} 25. Qxf3
{[%clk 0:02:22.3]} 25... Qxf3 {[%clk 0:01:44.3]} 26. gxf3 {[%clk 0:02:23.2]}
26... Rd3 {[%clk 0:01:43.6]} 27. Be3 {[%clk 0:02:22.5]} 27... Nd5 {[%clk
0:01:39.4]} 28. Red1 {[%clk 0:02:19.8]} 28... Nb4 {[%clk 0:01:35.3]} 29. Rxd3
{[%clk 0:02:15.4]} 29... Nxd3 {[%clk 0:01:36]} 30. a5 {[%clk 0:02:16.8]} 30...
Nxb2 {[%clk 0:01:25.1]} 31. a6 {[%clk 0:02:11.6]} 31... Nc4 {[%clk 0:01:25.8]}
32. Ne4 {[%clk 0:01:49.3]} 32... f5 {[%clk 0:01:21.3]} 33. Nd2 {[%clk 0:01:44]}
33... Nxe3 {[%clk 0:01:11.4]} 34. fxe3 {[%clk 0:01:45.1]} 34... Bc5 {[%clk
0:01:11.3]} 35. Nc4 {[%clk 0:01:45.6]} 35... f4 {[%clk 0:01:06]} 36. Kf2 {[%clk
0:01:41.7]} 36... fxe3+ {[%clk 0:01:06.8]} 37. Ke2 {[%clk 0:01:41.6]} 37... Kf7
{[%clk 0:00:59.4]} 38. Ra5 {[%clk 0:01:41]} 38... Rc8 {[%clk 0:00:46.5]} 39.
Rxc5 {[%clk 0:01:42]} 39... Rxc5 {[%clk 0:00:46.1]} 40. a7 {[%clk 0:01:43.3]}
40... Rxc4 {[%clk 0:00:46.3]} 41. a8=Q {[%clk 0:01:43.8]} 41... Rf4 {[%clk
0:00:46]} 42. Kxe3 {[%clk 0:01:43.5]} 42... Rf6 {[%clk 0:00:43.3]} 43. Qc8
{[%clk 0:01:43.6]} 43... Re6 {[%clk 0:00:42.3]} 44. Ke4 {[%clk 0:01:42.7]} 44...
Rf6 {[%clk 0:00:41.3]} 45. Kxe5 {[%clk 0:01:40]} 45... Kg6 {[%clk 0:00:37.1]}
46. f4 {[%clk 0:01:37.8]} 46... h5 {[%clk 0:00:34.4]} 47. h4 {[%clk 0:01:31.4]}
47... Kh7 {[%clk 0:00:31.4]} 48. Qe8 {[%clk 0:01:29.5]} 48... Rg6 {[%clk
0:00:21.3]} 49. f5 {[%clk 0:01:27.7]} 49... Rh6 {[%clk 0:00:19]} 50. Kf4 {[%clk
0:01:24.1]} 50... Rf6 {[%clk 0:00:17.7]} 51. Qxh5+ {[%clk 0:01:24.1]} 51... Rh6
{[%clk 0:00:18.7]} 52. Qg4 {[%clk 0:01:18.8]} 52... Rb6 {[%clk 0:00:18]} 53. Kg5
{[%clk 0:01:18.9]} 53... Rh6 {[%clk 0:00:16.6]} 54. Qe4 {[%clk 0:01:18.4]} 54...
Rf6 {[%clk 0:00:17.4]} 55. h5 {[%clk 0:01:18.2]} 55... Kg8 {[%clk 0:00:17.1]}
56. Qe8+ {[%clk 0:01:13.6]} 56... Kh7 {[%clk 0:00:17.6]} 57. Qe7 {[%clk
0:01:14.6]} 57... Rh6 {[%clk 0:00:17]} 58. Qf8 {[%clk 0:01:08]} 58... Rc6 {[%clk
0:00:14.8]} 59. Qe8 {[%clk 0:01:04.3]} 59... Rf6 {[%clk 0:00:13.3]} 60. Kf4
{[%clk 0:01:03.9]} 60... Rh6 {[%clk 0:00:12.5]} 61. Ke5 {[%clk 0:01:04.2]} 61...
Rb6 {[%clk 0:00:10.7]} 62. Qd7 {[%clk 0:00:58.8]} 62... Rh6 {[%clk 0:00:10.6]}
63. Qf7 {[%clk 0:00:59.3]} 63... Rb6 {[%clk 0:00:09.9]} 64. Qc7 {[%clk
0:00:57.6]} 64... Rh6 {[%clk 0:00:09]} 65. Kf4 {[%clk 0:00:50.8]} 65... Rf6
{[%clk 0:00:09]} 66. Ke4 {[%clk 0:00:52.2]} 66... Rh6 {[%clk 0:00:09.5]} 67. Qe7
{[%clk 0:00:50.2]} 67... Rb6 {[%clk 0:00:07.4]} 68. Kd5 {[%clk 0:00:47.5]} 68...
Rh6 {[%clk 0:00:06.8]} 69. Qf7 {[%clk 0:00:42]} 69... Ra6 {[%clk 0:00:06.7]} 70.
Qe8 {[%clk 0:00:30.4]} 70... Ra5+ {[%clk 0:00:06.3]} 71. Ke6 {[%clk 0:00:25.3]}
71... Ra6+ {[%clk 0:00:07]} 72. Ke7 {[%clk 0:00:23.7]} 72... Rf6 {[%clk
0:00:07.6]} 73. Qb5 {[%clk 0:00:14.2]} 73... Rh6 {[%clk 0:00:07.4]} 74. Qd3
{[%clk 0:00:14.8]} 74... Rf6 {[%clk 0:00:07.6]} 75. Qe4 {[%clk 0:00:16.1]} 75...
Kg8 {[%clk 0:00:08.1]} 76. Qe6+ {[%clk 0:00:12.3]} 1-0

[Event "*** Titled Tuesday 3|2 Blitz"]
[Site "Chess.com"]
[Date "2015.09.01"]
[Round "8"]
[White "tac49"]
[Black "BIG_Pirate"]
[Result "1/2-1/2"]
[WhiteElo "2422"]
[BlackElo "2222"]
[TimeControl "180+2"]
[EndTime "12:41:41 PDT"]
[Termination "Game drawn by agreement"]

1. e4 {[%clk 0:02:52.2]} 1... d5 {[%clk 0:03:01.1]} 2. exd5 {[%clk 0:02:47.6]}
2... Qxd5 {[%clk 0:03:03]} 3. Nf3 {[%clk 0:02:47]} 3... Nf6 {[%clk 0:03:03.7]}
4. Be2 {[%clk 0:02:44.6]} 4... Nc6 {[%clk 0:03:04.4]} 5. O-O {[%clk 0:02:41.3]}
5... Bg4 {[%clk 0:03:05.3]} 6. h3 {[%clk 0:02:31.9]} 6... Bh5 {[%clk 0:03:04.4]}
7. Nc3 {[%clk 0:02:31.9]} 7... Qa5 {[%clk 0:03:01.8]} 8. Rb1 {[%clk 0:02:23.5]}
8... O-O-O {[%clk 0:02:49.3]} 9. a3 {[%clk 0:02:17.2]} 9... e6 {[%clk 0:02:22]}
10. b4 {[%clk 0:02:17.8]} 10... Qf5 {[%clk 0:02:22.8]} 11. b5 {[%clk 0:02:14.5]}
11... Bxf3 {[%clk 0:02:18]} 12. Bxf3 {[%clk 0:02:15.6]} 12... Nd4 {[%clk
0:02:19.2]} 13. d3 {[%clk 0:02:13.4]} 13... Nxf3+ {[%clk 0:02:19.4]} 14. Qxf3
{[%clk 0:02:14.6]} 14... Qxf3 {[%clk 0:02:20.3]} 15. gxf3 {[%clk 0:02:16.5]}
15... Bc5 {[%clk 0:02:13.1]} 16. Ne4 {[%clk 0:02:15.3]} 16... Bd4 {[%clk
0:02:01.1]} 17. Bg5 {[%clk 0:02:07.3]} 17... Rd5 {[%clk 0:01:47.2]} 18. Bxf6
{[%clk 0:02:04.5]} 18... Bxf6 {[%clk 0:01:47.6]} 19. Nxf6 {[%clk 0:01:44.8]}
19... gxf6 {[%clk 0:01:49.5]} 20. Rfe1 {[%clk 0:01:44.9]} 20... Kd7 {[%clk
0:01:31.3]} 21. Re4 {[%clk 0:01:41.2]} 21... Rf5 {[%clk 0:01:31]} 22. Kg2 {[%clk
0:01:39.7]} 22... h5 {[%clk 0:01:31.7]} 23. f4 {[%clk 0:01:39.3]} 23... Rg8+
{[%clk 0:01:29]} 24. Kf3 {[%clk 0:01:39.6]} 24... b6 {[%clk 0:00:48.6]} 25. a4
{[%clk 0:01:39.5]} 25... Rc5 {[%clk 0:00:47.6]} 26. c4 {[%clk 0:01:32.8]} 26...
Ke7 {[%clk 0:00:45.6]} 27. Rc1 {[%clk 0:01:26]} 27... Rd8 {[%clk 0:00:42.3]} 28.
d4 {[%clk 0:01:24.4]} 28... Rf5 {[%clk 0:00:43.5]} 29. Ke3 {[%clk 0:01:24.9]}
29... Rg8 {[%clk 0:00:43.3]} 30. a5 {[%clk 0:01:21.9]} 30... Kd7 {[%clk
0:00:42.6]} 31. Kf3 {[%clk 0:01:07.8]} 31... Kd6 {[%clk 0:00:40.1]} 32. Ra1
{[%clk 0:01:04.8]} 32... Kd7 {[%clk 0:00:38.9]} 33. Ra4 {[%clk 0:00:55.9]} 33...
Kd6 {[%clk 0:00:39.9]} 34. Ra3 {[%clk 0:00:54.9]} 34... Kd7 {[%clk 0:00:40.9]}
35. Re1 {[%clk 0:00:54.6]} 35... Kd6 {[%clk 0:00:39.5]} 36. axb6 {[%clk
0:00:45]} 36... axb6 {[%clk 0:00:40.2]} 37. Ra7 {[%clk 0:00:45.8]} 37... Kd7
{[%clk 0:00:38.7]} 38. Rd1 {[%clk 0:00:43.6]} 38... Rb8 {[%clk 0:00:27.9]} 39.
c5 {[%clk 0:00:39.6]} 39... Kc8 {[%clk 0:00:22.3]} 40. cxb6 {[%clk 0:00:33.8]}
40... Rxb6 {[%clk 0:00:22.7]} 41. Rc1 {[%clk 0:00:35]} 41... Rb7 {[%clk
0:00:23.6]} 42. Ra8+ {[%clk 0:00:30.9]} 42... Kd7 {[%clk 0:00:24.7]} 43. Rf8
{[%clk 0:00:25.1]} 43... Ke7 {[%clk 0:00:25.9]} 44. Rc8 {[%clk 0:00:25.8]} 44...
Rfxb5 {[%clk 0:00:27]} 45. R1xc7+ {[%clk 0:00:23.5]} 45... Rxc7 {[%clk
0:00:28.9]} 46. Rxc7+ {[%clk 0:00:24.9]} 46... Kf8 {[%clk 0:00:30.8]} 47. Rc8+
{[%clk 0:00:23.8]} 47... Kg7 {[%clk 0:00:31.6]} 48. Rd8 {[%clk 0:00:24.6]} 48...
Rb3+ {[%clk 0:00:32.5]} 49. Kg2 {[%clk 0:00:25.1]} 49... Rd3 {[%clk 0:00:33.1]}
50. f5 {[%clk 0:00:20.4]} 50... Kh6 {[%clk 0:00:24]} 51. h4 {[%clk 0:00:19.6]}
51... Kg7 {[%clk 0:00:21.5]} 52. Rd7 {[%clk 0:00:18.2]} 52... e5 {[%clk
0:00:15.3]} 53. d5 {[%clk 0:00:18.3]} 53... Rd4 {[%clk 0:00:16.8]} 54. Kg3
{[%clk 0:00:18.1]} 54... Kf8 {[%clk 0:00:17.3]} 55. d6 {[%clk 0:00:15.5]} 55...
Ke8 {[%clk 0:00:14.2]} 56. Re7+ {[%clk 0:00:15.3]} 56... Kf8 {[%clk 0:00:14.8]}
57. Rd7 {[%clk 0:00:16.3]} 57... Ke8 {[%clk 0:00:15.9]} 58. Re7+ {[%clk
0:00:17.3]} 58... Kf8 {[%clk 0:00:16.9]} 59. Rd7 {[%clk 0:00:18]} 59... Rg4+
{[%clk 0:00:11.3]} 60. Kf3 {[%clk 0:00:14]} 60... Rxh4 {[%clk 0:00:12.1]} 61.
Rd8+ {[%clk 0:00:13.5]} 61... Kg7 {[%clk 0:00:13.4]} 62. Ke3 {[%clk 0:00:14.2]}
62... Rd4 {[%clk 0:00:14.7]} 63. d7 {[%clk 0:00:14.9]} 63... h4 {[%clk
0:00:15.5]} 64. f4 {[%clk 0:00:15.9]} 64... h3 {[%clk 0:00:13.2]} 65. fxe5
{[%clk 0:00:15.8]} 65... fxe5 {[%clk 0:00:15.1]} 66. Kf2 {[%clk 0:00:14.2]}
66... Kf6 {[%clk 0:00:16.1]} 67. Kg3 {[%clk 0:00:14.8]} 67... Rd3+ {[%clk
0:00:17.4]} 68. Kh2 {[%clk 0:00:14.4]} 68... e4 {[%clk 0:00:16.1]} 69. Re8
{[%clk 0:00:14.4]} 69... Rxd7 {[%clk 0:00:15]} 70. Rxe4 {[%clk 0:00:15.8]} 70...
Kxf5 {[%clk 0:00:15.2]} 71. Re3 {[%clk 0:00:16.8]} 71... Kf4 {[%clk 0:00:13.1]}
72. Rxh3 {[%clk 0:00:17.2]} 72... Rd2+ {[%clk 0:00:13.2]} 73. Kg1 {[%clk
0:00:17.8]} 73... f5 {[%clk 0:00:14.8]} 74. Ra3 {[%clk 0:00:18.4]} 74... Kg4
{[%clk 0:00:12]} 75. Kf1 {[%clk 0:00:19]} 75... f4 {[%clk 0:00:13.1]} 76. Rb3
{[%clk 0:00:19.9]} 76... Ra2 {[%clk 0:00:13.6]} 77. Rc3 {[%clk 0:00:20.5]} 77...
Ra4 {[%clk 0:00:12.7]} 78. Rb3 {[%clk 0:00:21]} 78... Ra1+ {[%clk 0:00:12.4]}
79. Kf2 {[%clk 0:00:21.4]} 79... Ra2+ {[%clk 0:00:13.9]} 80. Kf1 {[%clk
0:00:22.2]} 80... Rh2 {[%clk 0:00:10.9]} 81. Kg1 {[%clk 0:00:21.6]} 81... Rc2
{[%clk 0:00:08.7]} 82. Kf1 {[%clk 0:00:22]} 82... f3 {[%clk 0:00:08]} 83. Rb8
{[%clk 0:00:21.3]} 83... Kg3 {[%clk 0:00:08.6]} 1/2-1/2

[Event "*** Titled Tuesday 3|2 Blitz"]
[Site "Chess.com"]
[Date "2015.09.01"]
[Round "9"]
[White "Boryboy"]
[Black "Mornar1951"]
[Result "1/2-1/2"]
[WhiteElo "2514"]
[BlackElo "2505"]
[TimeControl "180+2"]
[EndTime "12:44:04 PDT"]
[Termination "Game drawn by agreement"]

1. d4 {[%clk 0:03:01.9]} 1... Nf6 {[%clk 0:03:00.3]} 2. Nf3 {[%clk 0:03:01.4]}
2... d5 {[%clk 0:03:00.9]} 3. c4 {[%clk 0:03:01.9]} 3... e6 {[%clk 0:03:02.1]}
4. g3 {[%clk 0:02:51.9]} 4... Bb4+ {[%clk 0:03:02]} 5. Bd2 {[%clk 0:02:52.7]}
5... Be7 {[%clk 0:03:02.8]} 6. Bg2 {[%clk 0:02:53.8]} 6... O-O {[%clk
0:03:02.7]} 7. O-O {[%clk 0:02:55.2]} 7... Nbd7 {[%clk 0:03:04]} 8. Qc2 {[%clk
0:02:55.5]} 8... c6 {[%clk 0:03:05.1]} 9. Bf4 {[%clk 0:02:52.9]} 9... b6 {[%clk
0:03:05.8]} 10. Nc3 {[%clk 0:02:48.3]} 10... Bb7 {[%clk 0:03:01.2]} 11. cxd5
{[%clk 0:02:46.6]} 11... cxd5 {[%clk 0:02:59.8]} 12. Rac1 {[%clk 0:02:47.6]}
12... Rc8 {[%clk 0:02:59.7]} 13. Qb3 {[%clk 0:02:47.5]} 13... Nh5 {[%clk
0:02:51.2]} 14. Bd2 {[%clk 0:02:47.2]} 14... Nhf6 {[%clk 0:02:42.8]} 15. Bf4
{[%clk 0:02:42.8]} 15... Nh5 {[%clk 0:02:43.2]} 16. Bd2 {[%clk 0:02:40.3]} 16...
Nhf6 {[%clk 0:02:43.9]} 1/2-1/2

[Event "*** Titled Tuesday 3|2 Blitz"]
[Site "Chess.com"]
[Date "2015.09.01"]
[Round "9"]
[White "MFBerna"]
[Black "AnastasiaProtopopova"]
[Result "1-0"]
[WhiteElo "2116"]
[BlackElo "1801"]
[TimeControl "180+2"]
[EndTime "12:44:53 PDT"]
[Termination "MFBerna won by resignation"]

1. e4 {[%clk 0:02:56.5]} 1... e5 {[%clk 0:03:00.4]} 2. Nf3 {[%clk 0:02:57.2]}
2... Nc6 {[%clk 0:03:01.5]} 3. Bb5 {[%clk 0:02:58.6]} 3... a6 {[%clk 0:03:02.5]}
4. Ba4 {[%clk 0:03:00]} 4... Nf6 {[%clk 0:03:03.6]} 5. O-O {[%clk 0:02:59.9]}
5... Be7 {[%clk 0:02:49.2]} 6. Re1 {[%clk 0:03:00.6]} 6... b5 {[%clk 0:02:50.6]}
7. Bb3 {[%clk 0:03:01.7]} 7... d6 {[%clk 0:02:49.8]} 8. c3 {[%clk 0:03:01.1]}
8... O-O {[%clk 0:02:49.9]} 9. h3 {[%clk 0:03:00.6]} 9... Na5 {[%clk 0:02:42.7]}
10. Bc2 {[%clk 0:03:01.5]} 10... d5 {[%clk 0:02:42]} 11. d4 {[%clk 0:02:58]}
11... dxe4 {[%clk 0:02:37.5]} 12. Nxe5 {[%clk 0:02:59.1]} 12... Bb7 {[%clk
0:02:25]} 13. Nd2 {[%clk 0:02:57.1]} 13... Bd6 {[%clk 0:02:13.4]} 14. Qe2 {[%clk
0:02:52.8]} 14... Re8 {[%clk 0:02:08.8]} 15. Nxe4 {[%clk 0:02:41.9]} 15... Bxe5
{[%clk 0:02:08.1]} 16. dxe5 {[%clk 0:02:42.1]} 16... Rxe5 {[%clk 0:02:09]} 17.
Nxf6+ {[%clk 0:02:41]} 17... Qxf6 {[%clk 0:02:08.8]} 18. Qxe5 {[%clk 0:02:40.2]}
1-0

[Event "*** Titled Tuesday 3|2 Blitz"]
[Site "Chess.com"]
[Date "2015.09.01"]
[Round "9"]
[White "stepanosinovsky"]
[Black "pKiLz5Rn9b"]
[Result "1-0"]
[WhiteElo "2302"]
[BlackElo "2398"]
[TimeControl "180+2"]
[EndTime "12:46:21 PDT"]
[Termination "stepanosinovsky won by resignation"]

1. Nf3 {[%clk 0:03:01.9]} 1... Nf6 {[%clk 0:03:01.1]} 2. g3 {[%clk 0:03:03.8]}
2... e6 {[%clk 0:03:02.2]} 3. Bg2 {[%clk 0:03:05.7]} 3... d5 {[%clk 0:03:03.9]}
4. O-O {[%clk 0:03:07.6]} 4... Be7 {[%clk 0:03:05.6]} 5. d3 {[%clk 0:03:09.5]}
5... O-O {[%clk 0:03:07.1]} 6. Nbd2 {[%clk 0:03:11.4]} 6... b5 {[%clk 0:03:07]}
7. e4 {[%clk 0:03:13.3]} 7... c5 {[%clk 0:03:08.3]} 8. Re1 {[%clk 0:03:14]} 8...
Nc6 {[%clk 0:03:09.1]} 9. e5 {[%clk 0:03:14.6]} 9... Nd7 {[%clk 0:03:10]} 10. h4
{[%clk 0:03:15.1]} 10... a5 {[%clk 0:03:10.7]} 11. Nf1 {[%clk 0:03:16.2]} 11...
b4 {[%clk 0:03:09.8]} 12. h5 {[%clk 0:03:17.5]} 12... h6 {[%clk 0:03:10.9]} 13.
N1h2 {[%clk 0:03:18.3]} 13... Re8 {[%clk 0:03:12.5]} 14. Ng4 {[%clk 0:03:19]}
14... Bf8 {[%clk 0:03:14.2]} 15. Bf4 {[%clk 0:03:13.7]} 15... Ne7 {[%clk
0:03:09.1]} 16. Nh4 {[%clk 0:02:50.6]} 16... Ba6 {[%clk 0:03:02.4]} 17. Qd2
{[%clk 0:02:50.7]} 17... Kh7 {[%clk 0:03:00.4]} 18. a3 {[%clk 0:02:26.1]} 18...
Qb6 {[%clk 0:02:53.1]} 19. Re3 {[%clk 0:02:08.2]} 19... Rad8 {[%clk 0:02:33.5]}
20. Rf3 {[%clk 0:02:08]} 20... Kg8 {[%clk 0:02:26.2]} 21. Bxh6 {[%clk
0:02:01.3]} 21... gxh6 {[%clk 0:02:25.1]} 22. Nxh6+ {[%clk 0:01:59.7]} 22...
Bxh6 {[%clk 0:02:25.4]} 23. Qxh6 {[%clk 0:02:01.2]} 23... Nf8 {[%clk 0:02:15.9]}
24. Rf4 {[%clk 0:01:54.7]} 24... Nf5 {[%clk 0:01:52.3]} 25. Nxf5 {[%clk
0:01:49.5]} 25... exf5 {[%clk 0:01:52]} 26. Qxb6 {[%clk 0:01:50.1]} 1-0